[Event "*** Titled Tuesday Blitz"]
[Site "Chess.com"]
[Date "2021.02.02"]
[Round "6"]
[White "KononenkoD"]
[Black "svilson23"]
[Result "1-0"]
[WhiteElo "2534"]
[BlackElo "2278"]
[TimeControl "180+1"]
[EndTime "11:07:20 PST"]
[Termination "KononenkoD won by resignation"]

1. d4 {[%clk 0:03:00.9]} 1... Nf6 {[%clk 0:02:58.8]} 2. c4 {[%clk 0:03:00]} 2...
e6 {[%clk 0:02:58.2]} 3. g3 {[%clk 0:02:59.6]} 3... Bb4+ {[%clk 0:02:26.7]} 4.
Bd2 {[%clk 0:02:59]} 4... Be7 {[%clk 0:02:12.8]} 5. Bg2 {[%clk 0:02:56.3]} 5...
d5 {[%clk 0:02:13.2]} 6. Nf3 {[%clk 0:02:54]} 6... O-O {[%clk 0:02:13.6]} 7. O-O
{[%clk 0:02:53.6]} 7... c6 {[%clk 0:02:14]} 8. Qc2 {[%clk 0:02:53.3]} 8... Nbd7
{[%clk 0:01:38.5]} 9. Rd1 {[%clk 0:02:52.2]} 9... b6 {[%clk 0:01:36.2]} 10. Bf4
{[%clk 0:02:50.9]} 10... Ba6 {[%clk 0:01:10.1]} 11. Nbd2 {[%clk 0:02:43.2]}
11... Rc8 {[%clk 0:01:07.8]} 12. Qa4 {[%clk 0:02:30.9]} 12... Bxc4 {[%clk
0:00:52.6]} 13. Nxc4 {[%clk 0:02:30.3]} 13... dxc4 {[%clk 0:00:52.1]} 14. Qxc4
{[%clk 0:02:28.5]} 14... c5 {[%clk 0:00:52.6]} 15. Ne5 {[%clk 0:02:25.6]} 15...
cxd4 {[%clk 0:00:43.1]} 16. Nc6 {[%clk 0:02:25.3]} 16... Qe8 {[%clk 0:00:40.5]}
17. Qxd4 {[%clk 0:02:09.3]} 17... Bc5 {[%clk 0:00:30.1]} 18. Qd2 {[%clk
0:02:08.9]} 18... e5 {[%clk 0:00:28.2]} 19. Be3 {[%clk 0:01:56]} 19... a5 {[%clk
0:00:22.3]} 20. Rac1 {[%clk 0:01:47.3]} 20... Qe6 {[%clk 0:00:21.1]} 21. Na7
{[%clk 0:01:43.8]} 21... Rcd8 {[%clk 0:00:19.6]} 22. Bxc5 {[%clk 0:01:37]} 22...
bxc5 {[%clk 0:00:18.7]} 23. Nc6 {[%clk 0:01:27.3]} 23... Rc8 {[%clk 0:00:16.7]}
24. Qd6 {[%clk 0:01:27.8]} 24... Qxa2 {[%clk 0:00:14]} 25. Ne7+ {[%clk 0:01:25]}
25... Kh8 {[%clk 0:00:13.5]} 26. Nxc8 {[%clk 0:01:25]} 26... Rxc8 {[%clk
0:00:14.4]} 27. Bh3 {[%clk 0:01:25.2]} 27... Rd8 {[%clk 0:00:13.7]} 28. Bxd7
{[%clk 0:01:15.7]} 28... Nxd7 {[%clk 0:00:11.6]} 29. Qe7 {[%clk 0:01:14.6]} 1-0

[Event "*** Titled Tuesday Blitz"]
[Site "Chess.com"]
[Date "2021.02.02"]
[Round "6"]
[White "kekic76"]
[Black "francyIM"]
[Result "1-0"]
[WhiteElo "2392"]
[BlackElo "2620"]
[TimeControl "180+1"]
[EndTime "11:07:21 PST"]
[Termination "kekic76 won by resignation"]

1. e4 {[%clk 0:03:00.9]} 1... e6 {[%clk 0:02:58.5]} 2. d4 {[%clk 0:03:00.6]}
2... d5 {[%clk 0:02:59.4]} 3. exd5 {[%clk 0:03:00.9]} 3... exd5 {[%clk
0:03:00.3]} 4. Bd3 {[%clk 0:03:01.1]} 4... Bd6 {[%clk 0:02:59.2]} 5. Ne2 {[%clk
0:03:01.2]} 5... Qf6 {[%clk 0:02:57.2]} 6. c3 {[%clk 0:02:59.2]} 6... Nc6 {[%clk
0:02:55.3]} 7. Nd2 {[%clk 0:02:58.5]} 7... Bf5 {[%clk 0:02:54.8]} 8. Nf3 {[%clk
0:02:57]} 8... O-O-O {[%clk 0:02:52.7]} 9. Qc2 {[%clk 0:02:54.3]} 9... Bxd3
{[%clk 0:02:51.6]} 10. Qxd3 {[%clk 0:02:53.9]} 10... h6 {[%clk 0:02:51.4]} 11.
O-O {[%clk 0:02:50.4]} 11... Nge7 {[%clk 0:02:51.2]} 12. Ng3 {[%clk 0:02:48.6]}
12... g5 {[%clk 0:02:50.6]} 13. Nh5 {[%clk 0:02:33.9]} 13... Qg6 {[%clk
0:02:47.3]} 14. Qxg6 {[%clk 0:02:30]} 14... fxg6 {[%clk 0:02:48.2]} 15. Ng3
{[%clk 0:02:18.9]} 15... g4 {[%clk 0:02:45]} 16. Ne1 {[%clk 0:01:57.5]} 16... h5
{[%clk 0:02:43.2]} 17. Nd3 {[%clk 0:01:57.5]} 17... Rdf8 {[%clk 0:02:38.4]} 18.
Ne2 {[%clk 0:01:55.5]} 18... h4 {[%clk 0:02:32.7]} 19. Bf4 {[%clk 0:01:49.3]}
19... Bxf4 {[%clk 0:02:30.8]} 20. Nexf4 {[%clk 0:01:49.1]} 20... g5 {[%clk
0:02:31.7]} 21. Ne6 {[%clk 0:01:48.9]} 21... Rhg8 {[%clk 0:02:30.8]} 22. Nxf8
{[%clk 0:01:48.2]} 22... Rxf8 {[%clk 0:02:31.7]} 23. Rae1 {[%clk 0:01:46.7]}
23... Kd7 {[%clk 0:02:31.8]} 24. Ne5+ {[%clk 0:01:45.9]} 24... Kd6 {[%clk
0:02:29.9]} 25. Nxc6 {[%clk 0:01:44.8]} 25... Nxc6 {[%clk 0:02:27.4]} 26. Re3
{[%clk 0:01:44.6]} 26... Rf6 {[%clk 0:02:23.4]} 27. Rfe1 {[%clk 0:01:44.3]}
27... b5 {[%clk 0:02:23.3]} 28. Re8 {[%clk 0:01:39.9]} 28... b4 {[%clk
0:02:22.8]} 29. Rg8 {[%clk 0:01:37.8]} 29... bxc3 {[%clk 0:02:22.9]} 30. bxc3
{[%clk 0:01:37.1]} 30... Rf5 {[%clk 0:02:23.6]} 31. Ree8 {[%clk 0:01:27.9]}
31... g3 {[%clk 0:02:13.6]} 32. hxg3 {[%clk 0:01:26.7]} 32... hxg3 {[%clk
0:02:13.4]} 33. fxg3 {[%clk 0:01:26.9]} 33... Rf6 {[%clk 0:02:07.1]} 34. Rxg5
{[%clk 0:01:23.8]} 34... Na5 {[%clk 0:02:06.8]} 35. Rd8+ {[%clk 0:01:19.6]}
35... Kc6 {[%clk 0:02:06.2]} 36. Rdxd5 {[%clk 0:01:18.5]} 36... Nb7 {[%clk
0:02:07]} 37. g4 {[%clk 0:01:12.2]} 37... Rf4 {[%clk 0:02:05.5]} 38. Rdf5 {[%clk
0:01:06.2]} 38... Re4 {[%clk 0:02:04.6]} 39. Kf2 {[%clk 0:01:06.1]} 39... Nd6
{[%clk 0:02:04.7]} 40. Rc5+ {[%clk 0:01:01.5]} 40... Kb6 {[%clk 0:02:04.2]} 41.
Rg6 {[%clk 0:00:58.6]} 41... Rf4+ {[%clk 0:02:01.5]} 42. Kg3 {[%clk 0:00:53.6]}
42... Re4 {[%clk 0:02:00.4]} 43. Rxd6+ {[%clk 0:00:48.9]} 43... cxd6 {[%clk
0:01:59.2]} 44. Rf5 {[%clk 0:00:49.2]} 44... Re2 {[%clk 0:01:57.5]} 45. Rf2
{[%clk 0:00:47.9]} 45... Re3+ {[%clk 0:01:57.7]} 46. Rf3 {[%clk 0:00:48.2]}
46... Re2 {[%clk 0:01:58.6]} 47. g5 {[%clk 0:00:48.6]} 47... Rxa2 {[%clk
0:01:57.8]} 48. g6 {[%clk 0:00:48.8]} 48... Ra5 {[%clk 0:01:56.4]} 49. Kg4
{[%clk 0:00:47.8]} 49... Ra2 {[%clk 0:01:52.7]} 50. g3 {[%clk 0:00:47.5]} 50...
Re2 {[%clk 0:01:50.2]} 51. g7 {[%clk 0:00:46.8]} 51... Re8 {[%clk 0:01:50.6]}
52. Rf8 {[%clk 0:00:46.6]} 1-0

[Event "*** Titled Tuesday Blitz"]
[Site "Chess.com"]
[Date "2021.02.02"]
[Round "6"]
[White "Aygehovit1992"]
[Black "ljuks68"]
[Result "1-0"]
[WhiteElo "2610"]
[BlackElo "2374"]
[TimeControl "180+1"]
[EndTime "11:07:21 PST"]
[Termination "Aygehovit1992 won by resignation"]

1. e4 {[%clk 0:03:00.9]} 1... e6 {[%clk 0:02:59.6]} 2. Nc3 {[%clk 0:03:00.8]}
2... d5 {[%clk 0:03:00.1]} 3. d4 {[%clk 0:03:01.7]} 3... Bb4 {[%clk 0:02:59.4]}
4. e5 {[%clk 0:03:01.7]} 4... Ne7 {[%clk 0:02:59.7]} 5. Qg4 {[%clk 0:03:00.4]}
5... c5 {[%clk 0:02:58.6]} 6. a3 {[%clk 0:02:58.3]} 6... Bxc3+ {[%clk
0:02:58.2]} 7. bxc3 {[%clk 0:02:58.5]} 7... Qc7 {[%clk 0:02:58.5]} 8. Qxg7
{[%clk 0:02:56.1]} 8... Rg8 {[%clk 0:02:58.5]} 9. Qxh7 {[%clk 0:02:56.6]} 9...
cxd4 {[%clk 0:02:58.2]} 10. Rb1 {[%clk 0:02:57.1]} 10... Qxe5+ {[%clk
0:02:50.7]} 11. Ne2 {[%clk 0:02:41.5]} 11... dxc3 {[%clk 0:02:36.9]} 12. Bf4
{[%clk 0:02:41]} 12... Qf6 {[%clk 0:02:36.7]} 13. h4 {[%clk 0:02:40.6]} 13...
Nbc6 {[%clk 0:02:35]} 14. Bg5 {[%clk 0:02:38.9]} 14... Qf5 {[%clk 0:02:20.5]}
15. Qxf5 {[%clk 0:02:22.6]} 15... Nxf5 {[%clk 0:02:19.2]} 16. Nxc3 {[%clk
0:02:22.8]} 16... a6 {[%clk 0:02:01.1]} 17. Bd3 {[%clk 0:02:21.1]} 17... Ncd4
{[%clk 0:01:48]} 18. Ne2 {[%clk 0:01:55.5]} 18... e5 {[%clk 0:01:23.9]} 19. Nxd4
{[%clk 0:01:52.2]} 19... Nxd4 {[%clk 0:01:23.5]} 20. f3 {[%clk 0:01:52.6]} 20...
b5 {[%clk 0:01:13.6]} 21. Kf2 {[%clk 0:01:51.5]} 21... Bf5 {[%clk 0:01:04.3]}
22. Rbe1 {[%clk 0:01:49.9]} 22... Bxd3 {[%clk 0:00:43.8]} 23. Rxe5+ {[%clk
0:01:49.6]} 23... Kd7 {[%clk 0:00:43.7]} 24. Rxd5+ {[%clk 0:01:44.1]} 24... Kc6
{[%clk 0:00:43.7]} 25. Rxd4 {[%clk 0:01:45]} 25... Bc4 {[%clk 0:00:43.6]} 26.
Bf6 {[%clk 0:01:35.9]} 26... Rae8 {[%clk 0:00:41.3]} 27. g4 {[%clk 0:01:31]}
27... Re2+ {[%clk 0:00:40.2]} 28. Kg3 {[%clk 0:01:31.4]} 28... Rxc2 {[%clk
0:00:38.6]} 29. h5 {[%clk 0:01:31.1]} 29... Kc5 {[%clk 0:00:13.4]} 30. Rf4
{[%clk 0:01:28.8]} 30... Bd3 {[%clk 0:00:12.6]} 31. h6 {[%clk 0:01:27.3]} 31...
Bh7 {[%clk 0:00:11.2]} 32. Bg7 {[%clk 0:01:24.8]} 1-0

[Event "*** Titled Tuesday Blitz"]
[Site "Chess.com"]
[Date "2021.02.02"]
[Round "6"]
[White "Eltaj_Safarli"]
[Black "Shahaliyev"]
[Result "1-0"]
[WhiteElo "2938"]
[BlackElo "2736"]
[TimeControl "180+1"]
[EndTime "11:07:27 PST"]
[Termination "Eltaj_Safarli won by resignation"]

1. e4 {[%clk 0:03:00.9]} 1... c5 {[%clk 0:02:37.6]} 2. Nc3 {[%clk 0:03:00.3]}
2... Nc6 {[%clk 0:02:36.8]} 3. Bb5 {[%clk 0:02:59.5]} 3... d6 {[%clk 0:02:35]}
4. Bxc6+ {[%clk 0:02:54.6]} 4... bxc6 {[%clk 0:02:34.7]} 5. d3 {[%clk
0:02:55.5]} 5... g6 {[%clk 0:02:34.6]} 6. f4 {[%clk 0:02:55.9]} 6... Bg7 {[%clk
0:02:34.5]} 7. Nf3 {[%clk 0:02:56.8]} 7... Nf6 {[%clk 0:02:33.7]} 8. O-O {[%clk
0:02:57.7]} 8... O-O {[%clk 0:02:33.2]} 9. Qe1 {[%clk 0:02:58]} 9... Nd7 {[%clk
0:02:20.1]} 10. f5 {[%clk 0:02:58]} 10... c4 {[%clk 0:02:11.5]} 11. d4 {[%clk
0:02:49.3]} 11... c5 {[%clk 0:02:04.8]} 12. d5 {[%clk 0:02:46.3]} 12... e6
{[%clk 0:01:50.6]} 13. dxe6 {[%clk 0:02:32.9]} 13... fxe6 {[%clk 0:01:51.5]} 14.
fxg6 {[%clk 0:02:33.4]} 14... hxg6 {[%clk 0:01:46.2]} 15. Qg3 {[%clk 0:02:33.3]}
15... Ne5 {[%clk 0:01:02.3]} 16. Nxe5 {[%clk 0:02:22.1]} 16... Rxf1+ {[%clk
0:01:03.2]} 17. Kxf1 {[%clk 0:02:22.4]} 17... Bxe5 {[%clk 0:01:00.4]} 18. Qxg6+
{[%clk 0:02:20.9]} 18... Kh8 {[%clk 0:01:01]} 19. Bg5 {[%clk 0:02:08.2]} 19...
Qg8 {[%clk 0:00:57.4]} 20. Bf6+ {[%clk 0:01:53.7]} 20... Bxf6 {[%clk 0:00:56.8]}
21. Qxf6+ {[%clk 0:01:54.6]} 21... Qg7 {[%clk 0:00:47.5]} 22. Qd8+ {[%clk
0:01:53.8]} 22... Kh7 {[%clk 0:00:47.5]} 23. Qxd6 {[%clk 0:01:50.7]} 23... e5
{[%clk 0:00:15.6]} 24. Ne2 {[%clk 0:01:16]} 24... Bg4 {[%clk 0:00:14.6]} 25. Ng3
{[%clk 0:01:13]} 25... Rf8+ {[%clk 0:00:14.6]} 26. Kg1 {[%clk 0:01:13.4]} 26...
Rf4 {[%clk 0:00:09.3]} 27. Qxc5 {[%clk 0:01:10.6]} 1-0

[Event "*** Titled Tuesday Blitz"]
[Site "Chess.com"]
[Date "2021.02.02"]
[Round "6"]
[White "WilliamSchill"]
[Black "The_filthy"]
[Result "0-1"]
[WhiteElo "1975"]
[BlackElo "2225"]
[TimeControl "180+1"]
[EndTime "11:07:27 PST"]
[Termination "The_filthy won on time"]

1. e4 {[%clk 0:03:00.9]} 1... e6 {[%clk 0:02:59.6]} 2. d4 {[%clk 0:03:00.5]}
2... d5 {[%clk 0:02:58]} 3. Nc3 {[%clk 0:03:00.6]} 3... Nf6 {[%clk 0:02:58.3]}
4. e5 {[%clk 0:03:00.4]} 4... Nfd7 {[%clk 0:02:58.7]} 5. f4 {[%clk 0:03:00.6]}
5... c5 {[%clk 0:02:59.3]} 6. Nf3 {[%clk 0:03:00.6]} 6... Nc6 {[%clk 0:02:59.9]}
7. Be3 {[%clk 0:03:00.8]} 7... Be7 {[%clk 0:03:00.2]} 8. Qd2 {[%clk 0:02:56.5]}
8... O-O {[%clk 0:02:59.6]} 9. Bd3 {[%clk 0:02:47.1]} 9... cxd4 {[%clk
0:02:55.1]} 10. Nxd4 {[%clk 0:02:43.9]} 10... Nxd4 {[%clk 0:02:55.3]} 11. Bxd4
{[%clk 0:02:43.6]} 11... f6 {[%clk 0:02:55.8]} 12. O-O {[%clk 0:02:18.4]} 12...
f5 {[%clk 0:02:50.3]} 13. Qf2 {[%clk 0:02:07.1]} 13... a6 {[%clk 0:02:35.1]} 14.
Ne2 {[%clk 0:02:03.2]} 14... b6 {[%clk 0:02:34.3]} 15. a4 {[%clk 0:01:43.7]}
15... Nc5 {[%clk 0:02:22.6]} 16. a5 {[%clk 0:01:37]} 16... Nxd3 {[%clk 0:02:20]}
17. cxd3 {[%clk 0:01:37.1]} 17... bxa5 {[%clk 0:02:14.8]} 18. Bb6 {[%clk
0:01:21.5]} 18... Qd7 {[%clk 0:02:13.1]} 19. Rxa5 {[%clk 0:01:17.7]} 19... Bb4
{[%clk 0:02:08.7]} 20. Ra2 {[%clk 0:01:04.9]} 20... Qb5 {[%clk 0:02:07.7]} 21.
Nc3 {[%clk 0:00:20.2]} 21... Qxd3 {[%clk 0:01:57.6]} 22. Bc5 {[%clk 0:00:19.1]}
22... Bxc5 {[%clk 0:01:53.8]} 23. Qxc5 {[%clk 0:00:19.1]} 23... Bd7 {[%clk
0:01:49.9]} 24. Qd6 {[%clk 0:00:14.6]} 24... Rfd8 {[%clk 0:01:44.4]} 25. Ra5
{[%clk 0:00:06.6]} 25... Kf7 {[%clk 0:01:35.9]} 26. Qa3 {[%clk 0:00:02.2]} 26...
h6 {[%clk 0:01:09.1]} 27. Rf3 {[%clk 0:00:01.7]} 27... Qc2 {[%clk 0:01:03.7]}
0-1

[Event "*** Titled Tuesday Blitz"]
[Site "Chess.com"]
[Date "2021.02.02"]
[Round "6"]
[White "oneshot007"]
[Black "ARTHURMOTIVATOR"]
[Result "1-0"]
[WhiteElo "2461"]
[BlackElo "2306"]
[TimeControl "180+1"]
[EndTime "11:07:28 PST"]
[Termination "oneshot007 won by resignation"]

1. e4 {[%clk 0:03:00.9]} 1... e5 {[%clk 0:02:59.2]} 2. Nf3 {[%clk 0:03:01.3]}
2... Nc6 {[%clk 0:02:59.4]} 3. d4 {[%clk 0:03:01.6]} 3... exd4 {[%clk
0:02:58.9]} 4. Nxd4 {[%clk 0:03:02.5]} 4... Bc5 {[%clk 0:02:58.3]} 5. Nxc6
{[%clk 0:03:02.9]} 5... Qf6 {[%clk 0:02:53.1]} 6. Qf3 {[%clk 0:03:03.4]} 6...
bxc6 {[%clk 0:02:51.2]} 7. Nd2 {[%clk 0:03:00.1]} 7... Ne7 {[%clk 0:02:47.8]} 8.
Qxf6 {[%clk 0:02:58.6]} 8... gxf6 {[%clk 0:02:48.7]} 9. Nb3 {[%clk 0:02:59.1]}
9... Bb6 {[%clk 0:02:47.8]} 10. a4 {[%clk 0:02:58.7]} 10... a5 {[%clk
0:02:46.5]} 11. Bd2 {[%clk 0:02:59.2]} 11... d6 {[%clk 0:02:46.2]} 12. Bc3
{[%clk 0:02:59.4]} 12... O-O {[%clk 0:02:35.3]} 13. Bxf6 {[%clk 0:02:58.9]}
13... Re8 {[%clk 0:02:35.8]} 14. f3 {[%clk 0:02:58.7]} 14... Nd5 {[%clk
0:02:34.3]} 15. Bg5 {[%clk 0:02:53.3]} 15... f5 {[%clk 0:02:29.9]} 16. O-O-O
{[%clk 0:02:47.3]} 16... Be3+ {[%clk 0:02:21.4]} 17. Bxe3 {[%clk 0:02:43.9]}
17... Nxe3 {[%clk 0:02:22.3]} 18. Re1 {[%clk 0:02:44.5]} 18... Nxf1 {[%clk
0:02:11.6]} 19. Rhxf1 {[%clk 0:02:45.4]} 19... c5 {[%clk 0:02:11.7]} 20. Nd2
{[%clk 0:02:42.4]} 20... Be6 {[%clk 0:02:04.4]} 21. exf5 {[%clk 0:02:40.5]}
21... Bxf5 {[%clk 0:02:03.8]} 22. Nc4 {[%clk 0:02:41.1]} 22... Reb8 {[%clk
0:01:51.2]} 23. Re7 {[%clk 0:02:35.2]} 23... Rb4 {[%clk 0:01:49.3]} 24. b3
{[%clk 0:02:35.6]} 24... Kf8 {[%clk 0:01:03.8]} 25. Rxc7 {[%clk 0:02:34.5]}
25... d5 {[%clk 0:01:04.2]} 26. Ne3 {[%clk 0:02:34.4]} 26... Be6 {[%clk
0:01:04.3]} 27. Rxc5 {[%clk 0:02:33.2]} 27... d4 {[%clk 0:01:00.3]} 28. Nd5
{[%clk 0:02:27.3]} 28... Rb7 {[%clk 0:00:53.5]} 29. Re1 {[%clk 0:02:27.3]} 29...
Bf7 {[%clk 0:00:49.4]} 30. Nf4 {[%clk 0:02:24.2]} 30... Rab8 {[%clk 0:00:45.5]}
31. Rd1 {[%clk 0:02:21]} 31... Bxb3 {[%clk 0:00:37.8]} 32. cxb3 {[%clk
0:02:18.3]} 32... Rxb3 {[%clk 0:00:38.7]} 33. Rxd4 {[%clk 0:02:18.9]} 33... Ra3
{[%clk 0:00:22]} 34. Rc7 {[%clk 0:02:09.7]} 34... Ra2 {[%clk 0:00:18.7]} 35.
Rdd7 {[%clk 0:01:55.1]} 35... Ra1+ {[%clk 0:00:10]} 36. Kd2 {[%clk 0:01:50.2]}
36... Ra2+ {[%clk 0:00:10.9]} 37. Rc2 {[%clk 0:01:50.5]} 37... Rxa4 {[%clk
0:00:10.2]} 38. Rxh7 {[%clk 0:01:49.7]} 38... Rd8+ {[%clk 0:00:06.7]} 39. Nd3
{[%clk 0:01:48.5]} 39... Kg8 {[%clk 0:00:06.9]} 40. Re7 {[%clk 0:01:44.6]} 40...
Ra3 {[%clk 0:00:07]} 41. Rc3 {[%clk 0:01:42.9]} 41... Ra2+ {[%clk 0:00:06.6]}
42. Rc2 {[%clk 0:01:43.3]} 42... a4 {[%clk 0:00:07.5]} 43. Rxa2 {[%clk
0:01:42.8]} 1-0

[Event "*** Titled Tuesday Blitz"]
[Site "Chess.com"]
[Date "2021.02.02"]
[Round "6"]
[White "chegueps"]
[Black "pavelalexandru07"]
[Result "1-0"]
[WhiteElo "2510"]
[BlackElo "2332"]
[TimeControl "180+1"]
[EndTime "11:07:29 PST"]
[Termination "chegueps won by resignation"]

1. e4 {[%clk 0:03:00.9]} 1... c5 {[%clk 0:02:56.9]} 2. Nf3 {[%clk 0:03:00.1]}
2... d6 {[%clk 0:02:57]} 3. d4 {[%clk 0:03:00.1]} 3... cxd4 {[%clk 0:02:57.4]}
4. Nxd4 {[%clk 0:03:01]} 4... Nf6 {[%clk 0:02:57.7]} 5. Nc3 {[%clk 0:03:01.5]}
5... a6 {[%clk 0:02:55.8]} 6. a3 {[%clk 0:03:01.9]} 6... e5 {[%clk 0:02:55]} 7.
Nf5 {[%clk 0:02:59.6]} 7... d5 {[%clk 0:02:52.3]} 8. Bg5 {[%clk 0:02:58.3]} 8...
Bxf5 {[%clk 0:02:36.8]} 9. exf5 {[%clk 0:02:55.7]} 9... d4 {[%clk 0:02:37.2]}
10. Ne4 {[%clk 0:02:32.9]} 10... Be7 {[%clk 0:02:36.1]} 11. Bxf6 {[%clk
0:02:30.6]} 11... Bxf6 {[%clk 0:02:28.4]} 12. Bc4 {[%clk 0:02:23.7]} 12... O-O
{[%clk 0:02:11.7]} 13. O-O {[%clk 0:02:21.8]} 13... b5 {[%clk 0:02:05.2]} 14.
Bb3 {[%clk 0:02:17.4]} 14... Qb6 {[%clk 0:02:00.1]} 15. g4 {[%clk 0:02:14]}
15... Nd7 {[%clk 0:01:54.2]} 16. g5 {[%clk 0:02:11.8]} 16... Bd8 {[%clk
0:01:50.3]} 17. Qg4 {[%clk 0:02:07]} 17... Kh8 {[%clk 0:01:35]} 18. Rad1 {[%clk
0:01:59.4]} 18... Qc6 {[%clk 0:01:16.8]} 19. Rd3 {[%clk 0:01:53]} 19... Nc5
{[%clk 0:00:54.2]} 20. Nxc5 {[%clk 0:01:51.2]} 20... Qxc5 {[%clk 0:00:53.5]} 21.
Rh3 {[%clk 0:01:41.7]} 21... Qe7 {[%clk 0:00:38.3]} 22. f6 {[%clk 0:01:07]}
22... gxf6 {[%clk 0:00:09.9]} 23. Qf5 {[%clk 0:00:56.9]} 1-0

[Event "*** Titled Tuesday Blitz"]
[Site "Chess.com"]
[Date "2021.02.02"]
[Round "6"]
[White "Virgo15"]
[Black "Gabrielian_Artur"]
[Result "0-1"]
[WhiteElo "2599"]
[BlackElo "2786"]
[TimeControl "180+1"]
[EndTime "11:07:30 PST"]
[Termination "Gabrielian_Artur won by resignation"]

1. d4 {[%clk 0:03:00.9]} 1... Nf6 {[%clk 0:02:59.7]} 2. Bf4 {[%clk 0:03:01.3]}
2... g6 {[%clk 0:02:55.7]} 3. Nc3 {[%clk 0:03:01.6]} 3... d5 {[%clk 0:02:55.4]}
4. e3 {[%clk 0:03:01.4]} 4... Bg7 {[%clk 0:02:54.9]} 5. h4 {[%clk 0:03:01.9]}
5... c5 {[%clk 0:02:50.8]} 6. Nb5 {[%clk 0:03:00.2]} 6... Na6 {[%clk 0:02:41.5]}
7. c3 {[%clk 0:03:00.7]} 7... O-O {[%clk 0:02:38.4]} 8. Nf3 {[%clk 0:02:49.5]}
8... Bg4 {[%clk 0:02:25.8]} 9. Be2 {[%clk 0:02:49.1]} 9... e6 {[%clk 0:02:24.9]}
10. a4 {[%clk 0:02:47.1]} 10... h5 {[%clk 0:02:09.4]} 11. Ne5 {[%clk 0:02:46.9]}
11... Bxe2 {[%clk 0:02:08.8]} 12. Qxe2 {[%clk 0:02:47.8]} 12... Nb8 {[%clk
0:01:59.2]} 13. f3 {[%clk 0:02:46.9]} 13... a6 {[%clk 0:01:57.6]} 14. Na3 {[%clk
0:02:43.8]} 14... cxd4 {[%clk 0:01:57.3]} 15. exd4 {[%clk 0:02:44]} 15... Nc6
{[%clk 0:01:57.7]} 16. Nc2 {[%clk 0:02:40.4]} 16... Nxe5 {[%clk 0:01:57.5]} 17.
Bxe5 {[%clk 0:02:40]} 17... Nd7 {[%clk 0:01:48.8]} 18. Bxg7 {[%clk 0:02:38.5]}
18... Kxg7 {[%clk 0:01:49.2]} 19. g4 {[%clk 0:02:37.9]} 19... Rh8 {[%clk
0:01:49.2]} 20. Ne3 {[%clk 0:02:32.5]} 20... hxg4 {[%clk 0:01:48.4]} 21. h5
{[%clk 0:02:24.9]} 21... gxf3 {[%clk 0:01:37.6]} 22. Qxf3 {[%clk 0:02:24.6]}
22... Nf6 {[%clk 0:01:24.9]} 23. hxg6 {[%clk 0:02:18]} 23... Rxh1+ {[%clk
0:01:24.4]} 24. Qxh1 {[%clk 0:02:18.9]} 24... Qh8 {[%clk 0:01:24.4]} 25. Qxh8+
{[%clk 0:02:10.3]} 25... Rxh8 {[%clk 0:01:23.4]} 26. gxf7 {[%clk 0:02:11.2]}
26... Rh1+ {[%clk 0:01:22.9]} 27. Nf1 {[%clk 0:02:11.1]} 27... Ne4 {[%clk
0:01:22.4]} 28. O-O-O {[%clk 0:01:48.9]} 28... Nf2 {[%clk 0:01:22.1]} 29. Ne3
{[%clk 0:01:30.4]} 29... Nxd1 {[%clk 0:01:21.8]} 30. Nxd1 {[%clk 0:01:31.3]}
30... Kxf7 {[%clk 0:01:21.9]} 31. Kc2 {[%clk 0:01:31.7]} 31... Rh2+ {[%clk
0:01:21.4]} 32. Kb3 {[%clk 0:01:30.8]} 32... Re2 {[%clk 0:01:21.3]} 33. Ka2
{[%clk 0:01:01.9]} 33... Kf6 {[%clk 0:01:17]} 34. Kb3 {[%clk 0:00:50.1]} 34...
Kf5 {[%clk 0:01:16.4]} 35. c4 {[%clk 0:00:46.7]} 35... Rd2 {[%clk 0:01:05.4]}
36. Nc3 {[%clk 0:00:42.4]} 36... Rxd4 {[%clk 0:01:04]} 37. c5 {[%clk 0:00:41.6]}
37... Rc4 {[%clk 0:01:00.1]} 0-1

[Event "*** Titled Tuesday Blitz"]
[Site "Chess.com"]
[Date "2021.02.02"]
[Round "6"]
[White "KaterinaMiroshnik"]
[Black "BigAl"]
[Result "1-0"]
[WhiteElo "2613"]
[BlackElo "2471"]
[TimeControl "180+1"]
[EndTime "11:07:32 PST"]
[Termination "KaterinaMiroshnik won by resignation"]

1. d4 {[%clk 0:02:58.1]} 1... g6 {[%clk 0:02:57.6]} 2. Nf3 {[%clk 0:02:59]} 2...
Bg7 {[%clk 0:02:57.6]} 3. e3 {[%clk 0:02:59.9]} 3... Nf6 {[%clk 0:02:57.8]} 4.
Bd3 {[%clk 0:03:00.8]} 4... O-O {[%clk 0:02:58.4]} 5. O-O {[%clk 0:03:01.2]}
5... d6 {[%clk 0:02:59.1]} 6. e4 {[%clk 0:02:59.6]} 6... Nc6 {[%clk 0:02:53.2]}
7. c3 {[%clk 0:02:59.2]} 7... e5 {[%clk 0:02:52.1]} 8. d5 {[%clk 0:02:58.5]}
8... Ne7 {[%clk 0:02:51.5]} 9. Nbd2 {[%clk 0:02:53.1]} 9... h6 {[%clk
0:02:47.6]} 10. Nc4 {[%clk 0:02:52.6]} 10... Nh5 {[%clk 0:02:44]} 11. b4 {[%clk
0:02:49]} 11... Kh8 {[%clk 0:02:37.9]} 12. a4 {[%clk 0:02:43.1]} 12... Ng8
{[%clk 0:02:38.1]} 13. Ra2 {[%clk 0:02:42.7]} 13... Qe8 {[%clk 0:02:33.6]} 14.
b5 {[%clk 0:02:41.6]} 14... f5 {[%clk 0:02:32.2]} 15. Nh4 {[%clk 0:02:28.6]}
15... Bf6 {[%clk 0:02:13.2]} 16. Nf3 {[%clk 0:02:07.5]} 16... f4 {[%clk
0:02:12.4]} 17. h3 {[%clk 0:02:05.2]} 17... Bd8 {[%clk 0:02:12.2]} 18. Nh2
{[%clk 0:02:02.9]} 18... g5 {[%clk 0:02:10.9]} 19. a5 {[%clk 0:01:53.6]} 19...
Nhf6 {[%clk 0:01:54.9]} 20. Ba3 {[%clk 0:01:44.7]} 20... b6 {[%clk 0:01:53.9]}
21. Qe2 {[%clk 0:01:40]} 21... Rf7 {[%clk 0:01:50.4]} 22. Rfa1 {[%clk
0:01:39.3]} 22... Rb8 {[%clk 0:01:50]} 23. axb6 {[%clk 0:01:32.8]} 23... axb6
{[%clk 0:01:48.8]} 24. Bxd6 {[%clk 0:01:31]} 24... cxd6 {[%clk 0:01:46.5]} 25.
Nxd6 {[%clk 0:01:31.9]} 25... Qf8 {[%clk 0:01:45.9]} 26. Nxf7+ {[%clk
0:01:32.2]} 26... Qxf7 {[%clk 0:01:46.4]} 27. Ra7 {[%clk 0:01:28.4]} 27... Qg6
{[%clk 0:01:43.5]} 28. Nf3 {[%clk 0:01:25]} 28... Nd7 {[%clk 0:01:33.4]} 29.
Rxd7 {[%clk 0:01:15.5]} 29... Bxd7 {[%clk 0:01:32.8]} 30. Nxe5 {[%clk 0:01:16]}
30... Qe8 {[%clk 0:01:29.3]} 31. Nf3 {[%clk 0:01:13.4]} 31... g4 {[%clk
0:01:11]} 32. hxg4 {[%clk 0:01:09.8]} 32... Bxg4 {[%clk 0:01:10.9]} 33. Ra7
{[%clk 0:01:09.8]} 33... Bf6 {[%clk 0:00:58.1]} 34. e5 {[%clk 0:01:06.1]} 34...
Be7 {[%clk 0:00:48.4]} 35. Qe4 {[%clk 0:01:05.8]} 35... Kg7 {[%clk 0:00:48]} 36.
Nh4 {[%clk 0:01:00.2]} 36... Ra8 {[%clk 0:00:41.8]} 37. Qh7+ {[%clk 0:00:55.5]}
37... Kf8 {[%clk 0:00:41.7]} 38. Ng6+ {[%clk 0:00:55.6]} 38... Qxg6 {[%clk
0:00:40.4]} 39. Bxg6 {[%clk 0:00:55.5]} 1-0